bitfinex/quotes_SOLUSD_20260221
["timestamp","ask_amount","ask_price","bid_price","bid_amount"]
[1771700092460,0.09714902,86.699,86.679,0.71479892]
[1771700096168,0.09714902,86.699,86.68,11.53668666]
[1771700098698,4.09199828,86.7,86.681,0.71479892]
[1771700098891,0.10163616,86.716,86.681,0.71479892]
[1771700099067,4.09199828,86.7,86.681,0.71479892]
[1771700100186,0.10306057,86.699,86.681,0.71479892]
[1771700100367,0.10306057,86.699,86.651,98.09465556]
[1771700100368,0.10306057,86.738,86.685,0.71479892]
[1771700100562,4.09199828,86.72,86.695,0.71479892]
[1771700100773,4.09199828,86.72,86.67,4.09199828]
[1771700100774,4.09199828,86.72,86.697,0.71479892]
[1771700101185,0.10306057,86.727,86.697,0.71479892]
[1771700101489,4.09199828,86.72,86.697,0.71479892]
[1771700101987,4.09199828,86.72,86.696,11.53455753]
[1771700101988,4.08957545,86.72,86.699,0.71479892]
[1771700103894,0.10516264,86.719,86.699,0.71479892]
[1771700104570,0.10516264,86.719,86.7,12.24882429]
[1771700107297,0.10516264,86.719,86.635,46.1706521]
[1771700107298,0.10784898,86.709,86.678,0.71479892]
[1771700107500,4.08957545,86.7,86.678,0.71479892]
[1771700107878,0.10784898,86.701,86.678,0.71479892]
[1771700108176,0.10849676,86.709,86.678,0.71479892]
[1771700109297,4.08957545,86.7,86.678,0.71479892]
[1771700110091,0.10976926,86.702,86.68,0.75192606]
[1771700114577,0.10976926,86.702,86.674,0.74441757]
[1771700122402,0.11304307,86.699,86.674,0.74441757]
[1771700125201,11.53278301,86.71,86.676,0.74441757]
[1771700126311,0.11332783,86.718,86.684,0.74441757]
[1771700128813,0.11332783,86.718,86.686,0.74441757]
[1771700131901,0.11366923,86.709,86.686,0.74441757]
[1771700132406,0.11366923,86.709,86.687,11.53575507]
[1771700132590,0.11366923,86.709,86.687,12.28017264]
[1771700132986,0.11366923,86.709,86.688,0.74441757]
[1771700134616,0.11366923,86.709,86.689,11.53548893]
[1771700134789,11.52883939,86.739,86.689,11.53548893]
[1771700134790,4.08957545,86.72,86.69,0.74441757]
[1771700134997,0.1138558,86.719,86.69,0.74441757]
[1771700137216,0.1138558,86.719,86.692,0.74441757]
[1771700141016,11.53133863,86.721,86.694,0.70006184]
[1771700142710,0.11441535,86.721,86.694,0.70006184]
[1771700151123,0.11493655,86.726,86.696,0.70006184]
[1771700151324,28.82209847,86.739,86.704,0.70006184]
[1771700151325,0.11493655,86.739,86.704,0.70006184]
[1771700151828,0.11493655,86.739,86.695,40.37141703]
[1771700151829,11.5275104,86.749,86.714,0.70006184]
[1771700152814,11.5275104,86.749,86.721,0.70006184]
[1771700153129,0.11503758,86.748,86.722,0.70006184]
[1771700156311,0.11503758,86.748,86.7,0.70006184]
[1771700156624,0.11518101,86.739,86.704,0.70006184]
[1771700157734,0.11522524,86.738,86.704,0.70006184]
[1771700158334,0.11522524,86.738,86.706,0.70006184]
[1771700166055,0.11522524,86.738,86.708,0.70006184]
[1771700169845,0.11522524,86.738,86.696,0.71794012]
[1771700170141,0.11576063,86.729,86.696,0.71794012]
[1771700173238,0.11576063,86.729,86.698,0.70006184]
[1771700174047,0.11545488,86.728,86.698,0.70006184]
[1771700183455,0.11545488,86.728,86.7,0.70006184]
[1771700193468,0.11545488,86.728,86.702,0.70006184]
[1771700219281,11.53016868,86.729,86.702,0.70006184]
[1771700220081,0.09807769,86.728,86.702,0.70006184]
[1771700224391,0.09807769,86.728,86.704,0.73109148]
[1771700224592,28.82059407,86.744,86.704,0.73109148]
[1771700224593,4.08960039,86.73,86.704,0.73109148]
[1771700226698,4.08960039,86.72,86.704,0.73109148]
[1771700229006,4.08960039,86.73,86.704,0.73109148]
[1771700230098,0.09519721,86.729,86.704,0.73109148]
[1771700230903,0.09471785,86.728,86.704,0.73109148]
[1771700232003,4.08960039,86.72,86.704,0.73109148]
[1771700237198,0.09471785,86.728,86.704,0.73109148]
[1771700239794,4.08960039,86.72,86.704,0.73109148]
[1771700240299,11.53050781,86.727,86.704,0.73109148]
[1771700240806,0.0924567,86.726,86.704,0.73109148]
[1771700256418,4.08960039,86.73,86.704,0.73109148]
[1771700256739,0.08931894,86.729,86.704,0.73109148]
[1771700273754,4.08960039,86.71,86.692,11.53507445]
[1771700273931,0.74134307,86.724,86.692,11.53507445]
[1771700274251,0.28432314,86.749,86.692,11.53507445]
[1771700274252,4.83094346,86.72,86.692,11.53507445]
[1771700274440,0.74134307,86.719,86.692,11.53507445]
[1771700275950,0.74134307,86.719,86.693,0.70658874]
[1771700280951,4.08960039,86.7,86.678,0.70658874]
[1771700281153,4.08960039,86.7,86.536,61.7]
[1771700281154,0.74134307,86.689,86.661,0.70658874]
[1771700281351,4.08960039,86.67,86.656,0.70658874]
[1771700284054,4.09435413,86.67,86.656,0.70658874]
[1771700287854,4.09435413,86.67,86.64,0.2]
[1771700287855,0.72367246,86.68,86.658,0.70532377]
[1771700288053,4.09435413,86.67,86.658,0.70532377]
[1771700288674,0.72367246,86.669,86.653,0.70532377]
[1771700288970,4.09435413,86.67,86.653,0.70532377]
[1771700292967,4.09435413,86.67,86.655,0.72247913]
[1771700293172,4.09435413,86.67,86.623,3.69383402]
[1771700293173,0.28432314,86.666,86.62,0.2]
[1771700293354,0.34159544,86.629,86.6,1e-08]
[1771700293555,0.34159544,86.609,86.591,0.72247913]
[1771700293759,0.34159544,86.609,86.55,0.2]
[1771700293760,4.09435413,86.6,86.55,0.2]
[1771700293972,4.09435413,86.59,86.55,0.2]
[1771700294555,4.09435413,86.59,86.566,11.55183129]
[1771700294865,14.94364135,86.665,86.55,0.2]
[1771700294866,0.71197762,86.579,86.55,0.2]
[1771700295174,4.09435413,86.57,86.55,0.2]
[1771700295770,4.09435413,86.57,86.556,0.72247913]
[1771700296974,11.54747745,86.599,86.561,0.72247913]
[1771700297276,4.09435413,86.6,86.561,0.72247913]
[1771700297854,4.09435413,86.6,86.571,0.72247913]
[1771700298757,11.54681077,86.604,86.571,0.72247913]
[1771700298959,4.09435413,86.6,86.571,0.72247913]
[1771700303568,4.09435413,86.6,86.573,0.72247913]
[1771700305086,4.09435413,86.59,86.573,0.72247913]
[1771700310990,4.09435413,86.62,86.581,0.72247913]
[1771700311282,4.09435413,86.61,86.581,0.72247913]
[1771700311464,4.80633175,86.61,86.581,0.72247913]
[1771700311662,4.09435413,86.6,86.581,0.72247913]
[1771700312566,4.80633175,86.6,86.581,0.72247913]
[1771700312768,4.09435413,86.6,86.581,0.72247913]
[1771700322282,0.74583386,86.612,86.583,0.72925061]
[1771700322493,28.85709373,86.634,86.582,11.54974475]
[1771700322494,12.28877938,86.633,86.591,0.72925061]
[1771700322789,0.74583386,86.619,86.591,0.72925061]
[1771700324191,3.95640295,86.62,86.591,0.72925061]
[1771700324498,3.95640295,86.62,86.582,40.42410662]
[1771700324499,11.53908287,86.662,86.611,0.72925061]
[1771700324792,4.09435413,86.65,86.611,0.72925061]
[1771700326191,0.74583386,86.649,86.611,0.72925061]
[1771700326405,0.74583386,86.647,86.613,0.72925061]
[1771700327398,4.09435413,86.64,86.613,0.72925061]
[1771700328980,4.84018799,86.63,86.615,0.72925061]
[1771700329801,0.74583386,86.629,86.598,0.72925061]
[1771700331774,0.74583386,86.629,86.6,0.72925061]
[1771700333503,4.09435413,86.63,86.6,0.72925061]
[1771700333504,0.74583386,86.627,86.6,0.72925061]
[1771700333699,0.74583386,86.619,86.6,0.72925061]
[1771700334201,4.09435413,86.61,86.586,0.72925061]
[1771700335186,4.84018799,86.61,86.586,0.72925061]
[1771700336486,0.74583386,86.609,86.586,0.72925061]
[1771700338306,0.74583386,86.614,86.587,11.5490778]
[1771700338508,0.74583386,86.614,86.588,0.72925061]
[1771700341913,0.74583386,86.614,86.59,0.72925061]
[1771700350422,0.74599166,86.612,86.59,0.72925061]
[1771700350611,0.74599166,86.619,86.59,0.72925061]
[1771700350801,0.74599166,86.619,86.592,0.70971896]
[1771700351722,0.74599166,86.617,86.592,0.70971896]
[1771700353320,0.74599166,86.615,86.592,0.70971896]
[1771700372220,0.74599166,86.625,86.594,0.70971896]
[1771700377143,0.74599166,86.623,86.596,0.70971896]
[1771700392158,0.74599166,86.623,86.596,0.70971896]
[1771700396338,0.74213285,86.64,86.601,0.74499461]
[1771700396653,0.74213285,86.634,86.601,0.74499461]
[1771700397855,0.74213285,86.634,86.61,4.09957811]
[1771700398164,0.74213285,86.634,86.611,0.74499461]
[1771700400561,11.54144962,86.645,86.613,0.74499461]
[1771700400863,0.74213285,86.644,86.613,0.74499461]
[1771700405256,0.74213285,86.644,86.621,0.74499461]
[1771700405765,11.54020818,86.654,86.621,0.74499461]
[1771700406066,11.54020818,86.654,86.614,11.54547763]
[1771700406067,0.74213285,86.662,86.631,0.74499461]
[1771700406264,4.09532518,86.66,86.631,0.74499461]
[1771700406670,4.83745803,86.66,86.631,0.74499461]
[1771700407070,11.5396155,86.658,86.631,0.74499461]
[1771700407366,0.74213285,86.657,86.632,11.54307876]
[1771700407570,0.74213285,86.663,86.633,0.74499461]
[1771700408870,0.74213285,86.663,86.635,0.76622534]
[1771700410255,11.53815089,86.669,86.636,11.54254582]
[1771700410454,11.53815089,86.669,86.641,0.76622534]
[1771700410673,0.75123454,86.659,86.621,11.82886776]
[1771700410972,0.73980031,86.649,86.621,11.54454462]
[1771700411556,4.09532518,86.66,86.621,11.54454462]
[1771700411762,0.73980031,86.659,86.621,11.54454462]
[1771700412669,11.5396155,86.658,86.623,11.54427807]
[1771700412876,0.73980031,86.657,86.624,0.47843443]
[1771700414355,4.09532518,86.65,86.618,0.48134529]
[1771700414560,0.73980031,86.639,86.615,0.48134529]
[1771700414877,4.09532518,86.64,86.561,5.36086188]
[1771700414878,0.82239807,86.619,86.561,5.36086188]
[1771700415079,0.82239807,86.619,86.58,4.09532518]
[1771700415261,0.82239807,86.619,86.581,0.28432314]
[1771700415461,0.82239807,86.619,86.564,3.69383402]
[1771700415763,0.82239807,86.609,86.58,4.09532518]
[1771700417474,0.82239807,86.609,86.581,11.54987814]
[1771700418678,0.82239807,86.609,86.566,0.28432314]
[1771700418875,0.82239807,86.609,86.571,0.28432314]
[1771700419774,0.82239807,86.609,86.58,4.09532518]
[1771700422056,0.82239807,86.609,86.581,11.54987814]
[1771700422677,0.82239807,86.607,86.567,11.55174604]
[1771700422876,0.82239807,86.603,86.567,11.55174604]
[1771700423184,0.82239807,86.599,86.567,11.55174604]
[1771700425284,0.82239807,86.599,86.566,0.28432314]
[1771700426071,0.82239807,86.599,86.57,4.09532518]
[1771700426275,0.82239807,86.609,86.571,0.02042657]
[1771700426659,0.82239807,86.608,86.571,0.02042657]
[1771700427584,0.82239807,86.608,86.572,0.02201445]
[1771700431371,0.82239807,86.599,86.567,0.02813874]
[1771700431572,0.82239807,86.599,86.566,11.57993261]
[1771700431983,0.82239807,86.599,86.566,11.55179387]
[1771700433197,0.82239807,86.589,86.566,11.55179387]
[1771700433975,0.82239807,86.589,86.561,0.03110281]
[1771700434993,0.82239807,86.589,86.561,11.58364956]
[1771700434994,0.59143652,86.589,86.561,11.58364956]
[1771700435486,0.59143652,86.589,86.55,4.29532518]
[1771700435487,4.09532518,86.58,86.555,0.2651389]
[1771700435807,4.09532518,86.58,86.554,11.5533769]
[1771700437002,0.73980031,86.579,86.554,11.5533769]
[1771700437684,28.86814408,86.601,86.554,11.5533769]
[1771700437685,57.6840988,86.679,86.578,0.77259262]
[1771700437986,57.6840988,86.679,86.581,0.77259262]
[1771700437987,4.09532518,86.61,86.581,0.77259262]
[1771700438194,4.09532518,86.62,86.581,0.77259262]
[1771700438774,4.09532518,86.64,86.571,0.77259262]
[1771700438775,4.09532518,86.61,86.571,0.77259262]
[1771700438980,4.09532518,86.6,86.571,0.77259262]
[1771700439174,4.09532518,86.6,86.573,0.77259262]
[1771700439782,0.83400367,86.599,86.573,0.77259262]
[1771700440598,0.83400367,86.599,86.574,11.55081202]
[1771700441687,0.83400367,86.599,86.574,12.32340464]
[1771700445294,0.83400367,86.599,86.576,11.55054518]
[1771700446095,0.83400367,86.599,86.576,12.3231378]
[1771700449211,0.83400367,86.599,86.577,0.77259262]
[1771700453699,0.83400367,86.599,86.573,12.32353806]
[1771700455216,0.83400367,86.599,86.573,11.55094544]
[1771700455787,0.83400367,86.599,86.565,0.77259262]
[1771700457709,0.83400367,86.599,86.566,11.55187949]
[1771700458610,0.83400367,86.599,86.566,12.32447211]
[1771700459310,0.83400367,86.599,86.567,0.77259262]
[1771700459493,0.83400367,86.597,86.561,12.32513937]
[1771700459698,0.83400367,86.589,86.562,0.77259262]
[1771700460299,11.54761079,86.598,86.551,11.55388152]
[1771700460300,0.83400367,86.569,86.551,11.55388152]
[1771700460913,0.83400367,86.559,86.542,11.5549704]
[1771700466497,0.83400367,86.559,86.531,0.77259262]
[1771700467610,46.15485464,86.665,86.541,0.77259262]
[1771700467611,0.83706904,86.579,86.541,0.77259262]
[1771700468620,0.83706904,86.579,86.543,0.86708274]
[1771700470926,0.83706904,86.579,86.544,11.55481604]
[1771700471108,0.83706904,86.579,86.551,0.78809971]
[1771700475605,0.83706904,86.579,86.561,0.78809971]
[1771700476928,0.86016273,86.589,86.563,0.78809971]
[1771700481219,0.86016273,86.588,86.563,0.78809971]
[1771700481728,0.86016273,86.588,86.565,0.78809971]
[1771700484534,0.86016273,86.579,86.547,0.78809971]
[1771700484750,0.86016273,86.569,86.537,0.78809971]
[1771700486732,0.86016273,86.569,86.538,11.55561718]
[1771700487042,0.86016273,86.569,86.539,0.78809971]
[1771700487428,0.86016273,86.559,86.539,0.78809971]
[1771700489540,0.86016273,86.569,86.541,0.78809971]
[1771700493442,0.86016273,86.569,86.542,11.55508308]
[1771700493650,0.86016273,86.559,86.542,11.55508308]
[1771700495146,0.86016273,86.559,86.537,11.55567843]
[1771700495533,0.86016273,86.559,86.532,11.55641843]
[1771700497050,0.86016273,86.549,86.526,0.78809971]
[1771700497745,0.86016273,86.549,86.527,12.36714588]
[1771700497943,0.86016273,86.549,86.528,0.81005966]
[1771700499856,0.86016273,86.549,86.529,12.36687876]
[1771700500352,0.86016273,86.549,86.53,0.81005966]
[1771700500648,0.86016273,86.549,86.51,0.2]
[1771700500649,0.80494018,86.539,86.51,0.2]
[1771700500862,0.80494018,86.529,86.51,0.2]
[1771700501545,0.80494018,86.519,86.51,0.2]
[1771700501751,0.80494018,86.519,86.505,11.55994377]
[1771700502341,4.10481904,86.53,86.506,0.81005966]
[1771700502947,4.10481904,86.52,86.492,11.56168758]
[1771700503148,4.10481904,86.5,86.49,0.2]
[1771700503350,4.10481904,86.5,86.48,11.76328254]
[1771700504158,4.10481904,86.5,86.48,12.5733422]
[1771700504360,0.80494018,86.505,86.481,0.81005966]
[1771700504659,0.80494018,86.529,86.491,0.81005966]
[1771700504966,0.80494018,86.529,86.48,11.76328254]
[1771700504967,0.80494018,86.519,86.481,0.81005966]
[1771700506452,0.80494018,86.517,86.481,0.81005966]
[1771700506757,28.88778256,86.542,86.49,4.10481904]
[1771700506971,4.10481904,86.54,86.491,0.81005966]
[1771700507558,4.10481904,86.53,86.491,0.81005966]
[1771700508155,44.54854447,86.54,86.493,0.81005966]
[1771700508749,0.37464459,86.539,86.493,0.81005966]
[1771700509861,0.37464459,86.539,86.5,4.9148787]
[1771700510665,0.37928113,86.537,86.501,0.81005966]
[1771700512668,0.38382632,86.529,86.494,0.81005966]
[1771700512855,0.38382632,86.527,86.494,0.81005966]
[1771700515076,0.38826312,86.525,86.49,4.10481904]
[1771700515671,0.38826312,86.525,86.489,0.81005966]
[1771700516865,4.10481904,86.52,86.489,0.81005966]
[1771700517072,0.39259258,86.517,86.482,0.81005966]
[1771700519373,0.39890849,86.529,86.5,4.10481904]
[1771700519553,0.39890849,86.535,86.501,0.81005966]
[1771700520674,0.39890849,86.535,86.503,0.81005966]
[1771700521876,0.40299827,86.534,86.503,0.81005966]
[1771700522780,0.40299827,86.534,86.505,0.81005966]
[1771700523265,0.40499817,86.519,86.482,0.81005966]
[1771700523961,0.40698706,86.509,86.482,0.81005966]
[1771700524975,0.40895454,86.507,86.48,0.2]
[1771700527878,11.55989179,86.506,86.48,0.2]
[1771700528180,0.41663253,86.499,86.48,0.2]
[1771700529378,0.42033073,86.497,86.48,0.2]
[1771700531482,0.42573172,86.495,86.48,0.2]
[1771700533102,0.42749375,86.51,86.481,0.91464767]
[1771700533271,0.42749375,86.51,86.482,0.91464767]
[1771700534582,4.11094403,86.53,86.491,0.92877159]
[1771700534981,0.28432314,86.539,86.491,0.92877159]
[1771700536958,4.11094403,86.53,86.481,0.92877159]
[1771700539979,4.11094403,86.52,86.483,0.92877159]
[1771700540458,4.11094403,86.52,86.48,0.2]
[1771700540986,0.28432314,86.519,86.48,0.2]
[1771700541288,4.11094403,86.51,86.48,0.2]
[1771700542471,40.45821822,86.509,86.48,0.2]
[1771700543279,0.02086395,86.508,86.48,0.2]
[1771700550893,3.69383402,86.526,86.48,0.2]
[1771700550894,0.28432314,86.52,86.491,0.92877159]
[1771700551393,28.894981,86.521,86.491,0.92877159]
[1771700551573,28.92985194,86.521,86.491,0.92877159]
[1771700551773,0.28432314,86.52,86.491,0.92877159]
[1771700552578,11.59468238,86.519,86.491,0.92877159]
[1771700554199,0.03816546,86.518,86.491,0.92877159]
[1771700554895,0.88889134,86.517,86.48,0.2]
[1771700555088,0.88889134,86.517,86.481,11.56323354]
[1771700555281,0.88889134,86.547,86.51,4.11094403]
[1771700555481,40.43998705,86.548,86.51,4.11094403]
[1771700555482,0.88889134,86.541,86.51,4.11094403]
[1771700555681,0.28432314,86.54,86.51,4.11094403]
[1771700555884,0.88889134,86.539,86.51,4.11094403]
[1771700557183,0.88889134,86.537,86.511,0.91464767]
[1771700558295,0.85934957,86.535,86.511,0.91464767]
[1771700558693,0.85934957,86.535,86.501,0.86248124]
[1771700559498,0.85934957,86.533,86.501,0.86248124]
[1771700566011,0.85934957,86.529,86.481,11.56323354]
[1771700566298,0.85934957,86.519,86.481,11.56323354]
[1771700566681,0.85934957,86.519,86.48,4.31094403]
[1771700566883,0.85934957,86.519,86.48,0.2]
[1771700567895,0.85934957,86.517,86.48,15.8742526]
[1771700568202,0.85934957,86.517,86.481,0.86248124]
[1771700569803,11.5568191,86.529,86.491,0.86248124]
[1771700569990,11.5568191,86.529,86.501,0.86248124]
[1771700572813,0.85934957,86.529,86.501,0.86248124]
[1771700574803,0.85934957,86.527,86.501,0.86248124]
[1771700575197,0.85934957,86.537,86.511,0.86248124]
[1771700576005,0.85934957,86.537,86.495,28.90335152]
[1771700576006,11.55422599,86.549,86.521,0.86248124]
[1771700576887,28.88037402,86.564,86.521,0.86248124]
[1771700576888,0.14216157,86.551,86.521,0.86248124]
[1771700577090,0.28432314,86.551,86.521,0.86248124]
[1771700577609,0.28432314,86.55,86.521,0.86248124]
[1771700577797,0.85934957,86.547,86.521,0.86248124]
[1771700578305,11.55428201,86.548,86.521,0.86248124]
[1771700579125,4.11094403,86.56,86.533,0.86248124]
[1771700580114,9.62355725,86.6,86.541,0.86248124]
[1771700580412,9.62355725,86.6,86.551,0.86248124]
[1771700580413,40.41617108,86.599,86.551,0.86248124]
[1771700580787,4.11094403,86.58,86.535,0.86248124]
[1771700581008,4.11094403,86.58,86.541,0.86248124]
[1771700581316,0.85934957,86.569,86.535,0.86248124]
[1771700582411,0.85934957,86.559,86.521,0.86248124]
[1771700582795,3.69383402,86.565,86.515,0.86248124]
[1771700582796,0.85934957,86.549,86.515,0.86248124]
[1771700582996,3.69383402,86.565,86.509,0.86248124]
[1771700582997,0.85934957,86.539,86.509,0.86248124]
[1771700583824,0.85934957,86.539,86.491,0.86248124]
[1771700585094,4.11094403,86.54,86.501,0.86248124]
[1771700585423,11.55414851,86.549,86.521,0.86248124]
[1771700585815,11.55414851,86.549,86.531,0.86248124]
[1771700587105,0.85934957,86.566,86.541,0.86248124]
[1771700587726,0.93251728,86.562,86.531,0.95377443]
[1771700590517,0.94052035,86.56,86.531,0.95377443]
[1771700591716,0.94052035,86.559,86.531,0.95377443]
[1771700598513,12.4934675,86.558,86.531,0.95377443]
[1771700599216,0.94052035,86.557,86.531,0.95377443]
[1771700603132,11.5532141,86.556,86.531,0.95377443]
[1771700604110,12.49373445,86.556,86.531,0.95377443]
[1771700604315,11.55348106,86.554,86.531,0.95377443]
[1771700607333,0.94052035,86.554,86.531,0.95377443]
[1771700608537,11.55361454,86.553,86.531,0.95377443]
[1771700612036,11.55281368,86.559,86.531,0.95377443]
[1771700613130,11.55281368,86.559,86.54,4.10483249]
[1771700613339,11.55281368,86.559,86.541,0.96313205]
[1771700613830,0.94052035,86.575,86.541,0.96313205]
[1771700614038,11.5506786,86.575,86.541,0.96313205]
[1771700614937,12.49119895,86.575,86.541,0.96313205]
[1771700615142,11.55094544,86.573,86.541,0.96313205]
[1771700615321,12.49146579,86.573,86.541,0.96313205]
[1771700615640,0.94052035,86.572,86.541,0.96313205]
[1771700618734,11.55121229,86.571,86.541,0.96313205]
[1771700619229,11.55121229,86.571,86.55,4.10483249]
[1771700619439,11.55121229,86.571,86.551,0.98420678]
[1771700621530,1.02309116,86.591,86.561,0.98420678]
[1771700621741,1.02309116,86.598,86.571,0.98420678]
[1771700624347,11.54774414,86.597,86.581,0.98420678]
[1771700625741,0.1,86.6,86.56,4.10483249]
[1771700625742,0.1,86.6,86.591,0.98420678]
[1771700629542,0.1,86.61,86.591,0.98420678]
[1771700629735,0.1,86.61,86.56,4.10483249]
[1771700629736,1.02309116,86.609,86.58,5.08903927]
[1771700630158,1.02309116,86.609,86.581,0.98420678]
[1771700630764,1.02309116,86.607,86.581,0.98420678]
[1771700631052,1.02309116,86.607,86.571,0.98420678]
[1771700631440,1.02309116,86.599,86.571,0.98420678]
[1771700631832,1.02309116,86.599,86.561,0.98420678]
[1771700632038,1.02309116,86.589,86.556,0.98420678]
[1771700632548,1.02309116,86.579,86.556,0.98420678]
[1771700632942,1.02309116,86.577,86.556,0.98420678]
[1771700633147,1.02309116,86.577,86.542,0.98420678]
[1771700635151,1.02309116,86.575,86.542,0.98420678]
[1771700635352,1.02309116,86.559,86.531,0.98420678]
[1771700637054,4.10483249,86.55,86.531,0.98420678]
[1771700638440,5.12792365,86.55,86.531,0.98420678]
[1771700639136,1.02309116,86.549,86.531,0.98420678]
[1771700640954,11.55428201,86.548,86.514,11.55881957]
[1771700641156,4.10483249,86.54,86.514,11.55881957]
[1771700642356,4.10483249,86.54,86.501,0.28432314]
[1771700642656,4.10483249,86.54,86.51,4.10483249]
[1771700642848,4.10483249,86.54,86.501,0.28432314]
[1771700643049,4.10483249,86.54,86.502,0.98420678]
[1771700644352,4.10483249,86.54,86.511,0.98420678]
[1771700644750,1.02309116,86.543,86.511,0.98420678]
[1771700644946,12.57737317,86.548,86.513,0.98420678]
[1771700647763,4.10483249,86.54,86.514,11.55882284]
[1771700647943,4.10483249,86.54,86.515,0.95882725]
[1771700649858,4.10707636,86.54,86.515,0.95882725]
[1771700650940,4.10707636,86.54,86.517,0.99231743]
[1771700654858,0.96019437,86.549,86.519,0.99231743]
[1771700655063,0.96019437,86.539,86.519,0.99231743]
[1771700657262,0.96019437,86.544,86.521,0.99231743]
[1771700657461,0.96019437,86.549,86.521,0.99231743]
[1771700657756,0.96019437,86.548,86.521,0.99231743]
[1771700660274,0.96019437,86.546,86.521,0.99231743]
[1771700667571,0.96019437,86.539,86.509,0.99231743]
[1771700667780,0.96019437,86.529,86.509,0.99231743]
[1771700668880,4.10707636,86.54,86.511,0.99231743]
[1771700669580,11.55548365,86.539,86.511,0.99231743]
[1771700670477,11.55449021,86.547,86.513,0.99231743]
[1771700670667,0.96019437,86.546,86.513,0.99231743]
[1771700673282,0.96019437,86.546,86.515,0.99231743]
[1771700674972,0.96019437,86.546,86.517,0.99231743]
[1771700675275,0.96019437,86.546,86.521,0.99231743]
[1771700677683,0.96019437,86.546,86.523,1.0602279]
[1771700678268,28.8805187,86.564,86.522,11.55775409]
[1771700678269,0.98855182,86.551,86.524,1.0602279]
[1771700678469,0.98855182,86.556,86.524,1.0602279]
[1771700681390,0.98855182,86.556,86.526,1.0602279]
[1771700681969,11.5531242,86.557,86.531,1.0602279]
[1771700682277,0.98855182,86.565,86.531,1.0602279]
[1771700686491,0.98855182,86.565,86.533,1.0602279]
[1771700686698,0.98855182,86.559,86.533,1.0602279]
[1771700686884,0.98855182,86.559,86.532,11.55641843]
[1771700687081,0.98855182,86.559,86.513,28.89706948]
[1771700687082,0.98855182,86.549,86.526,11.55721068]
[1771700688687,0.98855182,86.549,86.526,1.0602279]
[1771700690498,0.98855182,86.554,86.526,1.0602279]
[1771700690884,0.98855182,86.554,86.531,1.0602279]
[1771700694704,0.98855182,86.549,86.531,1.0602279]
[1771700697709,0.98855182,86.549,86.526,1.0602279]
[1771700700185,0.98855182,86.539,86.503,1.0602279]
[1771700704496,0.98855182,86.529,86.503,1.0602279]
[1771700705621,0.98855182,86.527,86.503,1.0602279]
[1771700708532,1.00322036,86.525,86.503,1.0602279]
[1771700715524,1.05417606,86.523,86.503,1.0602279]
[1771700719521,11.5568464,86.529,86.503,1.0602279]
[1771700719909,12.61102246,86.529,86.503,1.0602279]
[1771700720104,1.05417606,86.559,86.521,1.08140052]
[1771700720327,1.05417606,86.559,86.531,1.08140052]
[1771700720831,57.75030862,86.58,86.541,1.08140052]
[1771700720832,1.05417606,86.578,86.541,1.08140052]
[1771700721234,1.05417606,86.578,86.551,1.08140052]
[1771700721824,1.05417606,86.576,86.551,1.08140052]
[1771700724537,11.5506786,86.575,86.551,1.08140052]
[1771700724735,1.05417606,86.574,86.551,1.08140052]
[1771700729424,1.05417606,86.596,86.553,1.08140052]
[1771700729743,1.05417606,86.589,86.553,1.08140052]
[1771700730247,1.05417606,86.579,86.553,1.08140052]
[1771700730943,1.05417606,86.579,86.554,11.55348106]
[1771700731123,1.05417606,86.579,86.555,1.08140052]
[1771700734138,1.05417606,86.579,86.557,1.08140052]
[1771700735945,1.05417606,86.585,86.561,1.08140052]
[1771700736344,4.10829905,86.6,86.571,1.08140052]
[1771700736345,1.05417606,86.59,86.571,1.08140052]
[1771700737228,1.05417606,86.59,86.562,11.55241329]
[1771700737428,1.05417606,86.59,86.563,1.08140052]
[1771700739928,1.05417606,86.59,86.564,11.55214638]
[1771700740135,1.05417606,86.59,86.565,1.0861931]
[1771700750358,1.07426185,86.588,86.565,1.0861931]
[1771700755058,1.07426185,86.588,86.527,1.0861931]
[1771700755059,4.10829905,86.58,86.527,1.0861931]
[1771700755244,1.07426185,86.579,86.541,1.0861931]
[1771700755564,11.5490778,86.587,86.541,1.0861931]
[1771700755565,1.07426185,86.569,86.541,1.0861931]
[1771700755765,1.07426185,86.569,86.531,1.0861931]
[1771700756061,1.07426185,86.559,86.526,1.0861931]
[1771700756763,1.07426185,86.559,86.524,11.55748694]
[1771700757564,1.07426185,86.557,86.524,11.55748694]
[1771700759661,1.07426185,86.549,86.524,11.55748694]
[1771700760247,1.07426185,86.549,86.521,1.0861931]
[1771700760456,1.07426185,86.539,86.514,11.55869587]
[1771700760657,1.07426185,86.539,86.511,1.0861931]
[1771700761057,1.07426185,86.539,86.513,1.0861931]
[1771700761851,11.55332659,86.556,86.521,1.0861931]
[1771700762465,4.10829905,86.55,86.521,1.0861931]
[1771700763663,11.55414851,86.549,86.521,1.0861931]
[1771700763866,1.07426185,86.548,86.521,1.0861931]
[1771700768382,1.02456887,86.539,86.514,1.01151817]
[1771700777574,1.02456887,86.539,86.516,1.01557059]
[1771700783580,4.10731039,86.54,86.516,1.01557059]
[1771700783581,0.99359547,86.537,86.516,1.01557059]
[1771700784067,0.99359547,86.529,86.516,1.01557059]